bitfinex-derivatives/quotes_BNBF0:USTF0_20250116
["timestamp","ask_amount","ask_price","bid_price","bid_amount"]
[1736989810437,3.1063901,711.67,710.59,1.124]
[1736989810741,3.1063901,711.66,710.59,1.124]
[1736989810936,3.1063901,711.65,710.59,1.124]
[1736989811140,1.89429209,711.64,710.59,1.124]
[1736989811342,1.89429209,711.63,710.59,1.124]
[1736989811536,1.89429209,711.62,710.59,1.124]
[1736989811736,1.89429209,711.61,710.59,3.185]
[1736989811935,1.89429209,711.6,710.59,3.185]
[1736989812143,1.89471544,711.59,710.59,3.185]
[1736989812335,1.89471544,711.58,710.59,3.185]
[1736989812534,1.89471544,711.57,710.59,3.185]
[1736989812734,1.13715418,711.56,710.59,3.185]
[1736989812941,1.13715418,711.55,710.59,3.185]
[1736989813139,1.04975023,711.81,710.59,4.283]
[1736989813442,3.10789991,711.8,710.59,4.283]
[1736989813641,3.10789991,711.79,710.59,4.283]
[1736989813842,3.10789991,711.78,710.59,4.283]
[1736989814141,3.10789991,711.77,710.59,4.283]
[1736989814338,3.10789991,711.76,710.59,6.151]
[1736989814542,3.10789991,711.75,710.59,6.151]
[1736989814743,3.10789991,711.74,710.59,6.151]
[1736989814938,3.10789991,711.73,710.59,6.151]
[1736989815142,3.10789991,711.72,710.59,6.151]
[1736989815341,3.10789991,711.71,710.59,7.334]
[1736989815537,3.10789991,711.7,710.59,7.334]
[1736989815743,3.10789991,711.69,710.59,7.334]
[1736989815942,3.10789991,711.68,710.59,7.334]
[1736989816143,3.10789991,711.67,710.59,7.334]
[1736989816339,3.10789991,711.66,710.59,7.334]
[1736989816641,3.10789991,711.65,710.59,7.334]
[1736989816838,3.10926881,711.64,710.59,7.334]
[1736989817149,3.10926881,711.63,710.59,7.334]
[1736989817343,3.10926881,711.62,710.59,7.334]
[1736989817541,3.10926881,711.61,710.59,7.334]
[1736989817742,1.25970028,712.63,710.59,7.334]
[1736989817743,3.10926881,711.6,710.59,7.334]
[1736989817942,3.10926881,711.59,710.59,7.334]
[1736989818139,1.89680354,711.58,710.59,7.334]
[1736989818342,1.89701094,711.57,710.59,7.334]
[1736989818540,1.89701094,711.56,710.59,7.334]
[1736989818746,1.89701094,711.55,710.59,7.334]
[1736989818943,1.89701094,711.54,710.59,7.334]
[1736989819145,1.04975023,711.88,710.59,7.334]
[1736989819146,1.89701094,711.53,710.59,7.334]
[1736989819441,1.89701094,711.52,710.59,7.334]
[1736989819647,1.89701094,711.51,710.59,7.334]
[1736989819848,1.89701094,711.5,710.59,7.334]
[1736989820043,1.89701094,711.49,710.59,7.334]
[1736989820243,1.89701094,711.48,710.59,7.334]
[1736989820447,1.89701094,711.47,710.59,7.334]
[1736989820649,1.13922015,711.46,710.59,7.334]
[1736989820850,1.04975023,711.88,710.59,7.334]
[1736989821050,3.11345951,711.87,710.59,7.334]
[1736989821249,1.04975023,711.88,710.59,7.334]
[1736989821250,3.11345951,711.86,710.59,7.334]
[1736989821449,3.11345951,711.85,710.59,7.334]
[1736989821648,3.11345951,711.84,710.59,7.334]
[1736989821847,3.11345951,711.83,710.59,7.334]
[1736989822152,3.11357819,711.82,710.59,7.334]
[1736989822347,3.11357819,711.81,710.59,7.334]
[1736989822554,3.11357819,711.8,710.59,7.334]
[1736989822753,3.11357819,711.79,710.59,7.334]
[1736989822954,3.11357819,711.78,710.59,7.334]
[1736989823253,3.11357819,711.77,710.59,7.334]
[1736989823453,3.11357819,711.76,710.59,7.334]
[1736989823754,3.11357819,711.75,710.59,7.334]
[1736989823954,3.11393579,711.74,710.59,7.334]
[1736989824150,3.11393579,711.73,710.59,7.334]
[1736989824355,3.11393579,711.72,710.59,7.334]
[1736989824653,3.11474975,711.71,710.59,7.334]
[1736989824848,3.11474975,711.7,710.59,7.334]
[1736989825046,3.11474975,711.69,710.59,7.334]
[1736989825251,3.11474975,711.68,710.59,7.334]
[1736989825454,3.11474975,711.67,710.59,7.334]
[1736989825657,3.11474975,711.66,710.59,7.334]
[1736989825953,3.11474975,711.65,710.59,7.334]
[1736989826253,3.11474975,711.64,710.59,7.334]
[1736989826453,3.11474975,711.63,710.59,7.334]
[1736989826656,3.11474975,711.62,710.59,7.334]
[1736989826856,3.11474975,711.61,710.59,7.334]
[1736989827153,3.11474975,711.6,710.59,7.334]
[1736989827349,3.11474975,711.59,710.59,7.334]
[1736989827552,3.11474975,711.58,710.59,7.334]
[1736989827750,3.11475805,711.57,710.59,7.334]
[1736989827955,1.89952455,711.56,710.59,7.334]
[1736989828150,1.89952455,711.55,710.59,7.334]
[1736989828352,1.89952455,711.54,710.59,7.334]
[1736989828552,1.04975023,711.82,710.59,7.334]
[1736989828553,1.89952455,711.53,710.59,7.334]
[1736989828752,1.89952455,711.52,710.59,7.334]
[1736989828954,1.89952455,711.51,710.59,7.334]
[1736989829155,1.89952455,711.5,710.59,7.334]
[1736989829354,1.89952455,711.49,710.59,7.334]
[1736989829555,1.89952455,711.48,710.59,7.334]
[1736989829856,1.13999097,711.47,710.59,7.334]
[1736989830155,1.04975023,711.81,710.59,7.334]
[1736989830356,3.1152297,711.8,710.59,7.334]
[1736989830553,3.1152297,711.79,710.59,7.334]
[1736989830750,3.1152297,711.78,710.59,7.334]
[1736989830952,1.04975023,711.82,710.59,7.334]
[1736989830953,3.1152297,711.77,710.59,7.334]
[1736989831154,3.1152297,711.76,710.59,7.334]
[1736989831355,3.1152297,711.75,710.59,7.334]
[1736989831551,1.04975023,711.82,710.59,7.334]
[1736989831552,3.1152297,711.74,710.59,7.334]
[1736989831751,3.1152297,711.73,710.59,7.334]
[1736989831951,3.1152297,711.72,710.59,7.334]
[1736989832152,3.1152297,711.71,710.59,7.334]
[1736989832355,3.11525472,711.7,710.59,7.334]
[1736989832556,3.11525472,711.69,710.59,7.334]
[1736989832756,3.11525472,711.68,710.59,7.334]
[1736989833058,3.11525472,711.67,710.59,7.334]
[1736989833257,3.11525472,711.66,710.59,7.334]
[1736989833459,3.11525472,711.65,710.59,7.334]
[1736989833661,3.11525472,711.64,710.59,7.334]
[1736989833961,3.11507598,711.63,710.59,7.334]
[1736989834157,3.11507598,711.62,710.59,7.334]
[1736989834462,3.11507598,711.61,710.59,7.334]
[1736989834662,3.11507598,711.6,710.59,7.334]
[1736989834862,3.11507598,711.59,710.59,7.334]
[1736989835064,3.11507598,711.58,710.59,7.334]
[1736989835264,3.11507598,711.57,710.59,7.334]
[1736989835463,3.11507598,711.56,710.59,7.334]
[1736989835663,1.14009977,711.55,710.59,7.334]
[1736989835865,1.89969408,711.54,710.59,7.334]
[1736989836060,1.89969408,711.53,710.59,7.334]
[1736989836364,1.89969408,711.52,710.59,7.334]
[1736989836563,1.89969408,711.51,710.59,7.334]
[1736989836764,1.89969408,711.5,710.59,7.334]
[1736989836959,1.89969408,711.49,710.59,7.334]
[1736989837261,1.89969408,711.48,710.59,7.334]
[1736989837564,1.14009977,711.47,710.59,7.334]
[1736989837765,1.14009977,711.46,710.59,7.334]
[1736989837965,1.04975023,711.76,710.59,7.334]
[1736989838267,3.11459244,711.75,710.59,7.334]
[1736989838465,3.11459244,711.74,710.59,7.334]
[1736989838665,3.11459244,711.73,710.59,7.334]
[1736989838864,3.11459244,711.72,710.59,7.334]
[1736989839165,3.11459244,711.71,710.59,7.334]
[1736989839464,1.25970028,712.28,710.59,7.334]
[1736989839465,3.11459244,711.7,710.59,7.334]
[1736989839666,3.11422049,711.69,710.59,7.334]
[1736989839866,3.11422049,711.68,710.59,7.334]
[1736989840061,3.11422049,711.67,710.59,7.334]
[1736989840263,1.89889288,711.66,710.59,7.334]
[1736989840464,1.89889288,711.65,710.59,7.334]
[1736989840664,1.89889288,711.64,710.6,0.28145229]
[1736989840865,1.89889288,711.63,710.6,0.28145229]
[1736989841165,1.89889288,711.62,710.6,0.28145229]
[1736989841366,1.8987011,711.61,710.6,0.28145229]
[1736989841567,1.04975023,712.0,710.6,0.28145229]
[1736989841767,3.11334747,711.99,710.6,0.28145229]
[1736989842066,3.11334747,711.98,710.6,3.82245229]
[1736989842267,3.11334747,711.97,710.6,3.82245229]
[1736989842465,3.11334747,711.96,710.6,3.82245229]
[1736989842767,3.11334747,711.95,710.6,3.82245229]
[1736989842967,3.11334747,711.94,710.6,3.82245229]
[1736989843168,3.11334747,711.93,710.6,3.82245229]
[1736989843367,3.11334747,711.92,710.6,3.82245229]
[1736989843667,3.11334747,711.91,710.6,3.82245229]
[1736989843867,3.11334747,711.9,710.6,3.82245229]
[1736989844068,3.11334747,711.89,710.6,3.82245229]
[1736989844265,3.11334747,711.88,710.6,3.82245229]
[1736989844459,3.11334747,711.87,710.6,3.82245229]
[1736989844663,3.11334747,711.86,710.6,3.82245229]
[1736989844867,3.11334747,711.85,710.6,3.82245229]
[1736989845068,3.11334747,711.84,710.6,3.82245229]
[1736989845368,3.11334747,711.83,710.6,3.82245229]
[1736989845564,3.11334747,711.82,710.6,5.04745229]
[1736989845763,3.11334747,711.81,710.6,5.04745229]
[1736989845962,3.11334747,711.8,710.6,5.04745229]
[1736989846162,3.11334747,711.79,710.6,5.04745229]
[1736989846363,3.11334747,711.78,710.6,5.04745229]
[1736989846564,3.11334747,711.77,710.6,5.04745229]
[1736989846766,3.11334747,711.76,710.6,5.04745229]
[1736989846971,3.11334747,711.75,710.6,5.04745229]
[1736989847269,3.11334747,711.74,710.6,5.04745229]
[1736989847465,3.11252983,711.73,710.6,5.04745229]
[1736989847663,3.11252983,711.72,710.6,5.04745229]
[1736989847867,1.13866141,711.71,710.6,5.04745229]
[1736989848063,3.11108716,711.7,710.6,5.04745229]
[1736989848263,3.11108716,711.69,710.6,5.04745229]
[1736989848467,3.11108716,711.68,710.6,5.04745229]
[1736989848670,3.11108716,711.67,710.6,5.04745229]
[1736989848971,3.11108716,711.66,710.6,5.04745229]
[1736989849167,3.11108716,711.65,710.6,5.04745229]
[1736989849368,3.11108716,711.64,710.6,5.04745229]
[1736989849569,3.11108716,711.63,710.6,3.82245229]
[1736989849864,3.11108716,711.62,710.6,3.82245229]
[1736989850067,1.8972867,711.61,710.6,4.94745229]
[1736989850368,1.8972867,711.6,710.6,4.94745229]
[1736989850570,1.8972867,711.59,710.6,4.94745229]
[1736989850769,1.8972867,711.58,710.6,4.94745229]
[1736989851071,1.8972867,711.57,710.6,4.94745229]
[1736989851272,1.89742128,711.56,710.6,4.94745229]
[1736989851575,1.89742128,711.55,710.6,4.94745229]
[1736989851771,1.89742128,711.54,710.6,4.94745229]
[1736989851973,1.89742128,711.53,710.6,4.94745229]
[1736989852166,1.13866141,711.52,710.6,4.94745229]
[1736989852364,1.04975023,711.89,710.6,4.94745229]
[1736989852365,1.13866141,711.51,710.6,4.94745229]
[1736989852567,1.04975023,711.89,710.6,6.60445229]
[1736989852764,3.11168785,711.88,710.6,6.60445229]
[1736989852968,4.16143808,711.87,710.6,6.60445229]
[1736989853165,3.11168785,711.86,710.6,6.60445229]
[1736989853373,3.11168785,711.85,710.6,6.60445229]
[1736989853671,3.11168785,711.84,710.6,6.60445229]
[1736989853866,3.11168785,711.83,710.6,7.90945229]
[1736989854071,3.11168785,711.82,710.6,7.90945229]
[1736989854271,3.11168785,711.81,710.6,7.90945229]
[1736989854475,3.11168785,711.8,710.6,7.90945229]
[1736989854774,3.11168785,711.79,710.6,7.90945229]
[1736989854974,3.11168785,711.78,710.6,7.90945229]
[1736989855174,3.11180277,711.77,710.6,7.90945229]
[1736989855374,3.11180277,711.76,710.6,7.90945229]
[1736989855669,1.04975023,711.87,710.6,7.90945229]
[1736989855870,3.11202536,711.86,710.6,7.90945229]
[1736989856073,3.11202536,711.85,710.6,7.90945229]
[1736989856274,3.11202536,711.84,710.6,7.90945229]
[1736989856470,3.11202536,711.83,710.6,7.90945229]
[1736989856774,3.11202536,711.82,710.6,7.90945229]
[1736989857074,3.11202536,711.81,710.6,7.90945229]
[1736989857275,3.11205233,711.8,710.6,7.90945229]
[1736989857574,3.11205233,711.79,710.6,7.90945229]
[1736989857776,3.11205233,711.78,710.6,7.90945229]
[1736989858074,3.11205233,711.77,710.6,7.90945229]
[1736989858275,3.11205233,711.76,710.6,7.90945229]
[1736989858470,3.11205233,711.75,710.6,7.90945229]
[1736989858676,3.11205233,711.74,710.6,7.90945229]
[1736989858876,3.11205233,711.73,710.6,7.90945229]
[1736989859076,3.11205233,711.72,710.6,7.90945229]
[1736989859375,3.11205233,711.71,710.6,7.90945229]
[1736989859677,3.11205233,711.7,710.6,7.90945229]
[1736989859877,3.11205233,711.69,710.6,7.90945229]
[1736989860177,3.11189637,711.68,710.6,7.90945229]
[1736989860377,1.89786833,711.67,710.6,7.90945229]
[1736989860578,1.89786833,711.66,710.6,7.90945229]
[1736989860875,1.89786833,711.65,710.6,7.90945229]
[1736989861071,1.89786833,711.64,710.6,7.90945229]
[1736989861273,1.89786833,711.63,710.6,7.90945229]
[1736989861474,1.89786833,711.62,710.6,7.90945229]
[1736989861675,1.89786833,711.61,710.6,7.90945229]
[1736989861973,1.89786833,711.6,710.6,7.90945229]
[1736989862177,1.89786833,711.59,710.6,7.90945229]
[1736989862477,1.89745196,711.58,710.6,7.90945229]
[1736989862777,1.13875264,711.57,710.6,7.90945229]
[1736989862978,1.04975023,712.12,710.6,7.90945229]
[1736989863279,3.39255219,712.11,710.6,7.90945229]
[1736989863473,3.39255613,712.1,710.6,7.90945229]
[1736989863675,3.39256008,712.09,710.6,7.90945229]
[1736989863880,3.39256402,712.08,710.6,7.90945229]
[1736989864074,3.11169671,712.07,710.6,7.90945229]
[1736989864275,3.11169671,712.06,710.6,7.90945229]
[1736989864475,3.11169671,712.05,710.6,7.90945229]
[1736989864678,3.11169671,712.04,710.6,7.90945229]
[1736989864879,3.11169671,712.03,710.6,7.90945229]
[1736989865075,3.11169671,712.02,710.6,7.90945229]
[1736989865282,3.11169671,712.01,710.6,7.90945229]
[1736989865483,3.11169671,712.0,710.6,7.90945229]
[1736989865781,3.11169671,711.99,710.6,7.90945229]
[1736989865981,3.11169671,711.98,710.6,7.90945229]
[1736989866181,3.11169671,711.97,710.6,7.90945229]
[1736989866379,3.11169671,711.96,710.6,7.90945229]
[1736989866580,3.11169671,711.95,710.6,7.90945229]
[1736989866775,3.11169671,711.94,710.6,7.90945229]
[1736989866979,3.11169671,711.93,710.6,7.90945229]
[1736989867177,3.11169671,711.92,710.6,7.90945229]
[1736989867381,3.11169671,711.91,710.6,7.90945229]
[1736989867579,3.11169671,711.9,710.6,7.90945229]
[1736989867779,3.11169671,711.89,710.6,7.90945229]
[1736989867981,3.11169671,711.88,710.6,7.90945229]
[1736989868181,3.11169671,711.87,710.6,7.90945229]
[1736989868384,3.11169671,711.86,710.6,7.90945229]
[1736989868586,3.11169671,711.85,710.6,7.90945229]
[1736989868886,3.11169671,711.84,710.6,7.90945229]
[1736989869084,3.11169671,711.83,710.6,7.90945229]
[1736989869288,3.11169671,711.82,710.6,7.90945229]
[1736989869588,3.11169671,711.81,710.6,7.90945229]
[1736989869788,3.11169671,711.8,710.6,7.90945229]
[1736989869984,3.11226144,711.79,710.6,7.90945229]
[1736989870289,3.11226144,711.78,710.6,7.90945229]
[1736989870484,3.11365331,711.77,710.6,7.90945229]
[1736989870791,3.11365331,711.76,710.6,7.90945229]
[1736989870981,3.11365331,711.75,710.6,7.90945229]
[1736989871187,3.11365331,711.74,710.6,7.90945229]
[1736989871384,3.11365331,711.73,710.6,7.90945229]
[1736989871685,3.11365331,711.72,710.6,7.90945229]
[1736989871991,3.11365331,711.71,710.6,7.90945229]
[1736989872186,3.11365331,711.7,710.6,7.90945229]
[1736989872392,3.11365331,711.69,710.6,7.90945229]
[1736989872590,3.11365331,711.68,710.6,7.90945229]
[1736989872787,1.89884372,711.67,710.6,7.90945229]
[1736989872989,1.89884372,711.66,710.6,7.90945229]
[1736989873189,1.89884372,711.65,710.6,7.90945229]
[1736989873490,1.89884372,711.64,710.6,7.90945229]
[1736989873692,1.89884372,711.63,710.6,7.90945229]
[1736989873992,1.89885637,711.62,710.6,7.90945229]
[1736989874184,1.89885637,711.61,710.6,7.90945229]
[1736989874387,1.89885637,711.6,710.6,7.90945229]
[1736989874589,1.04975023,711.97,710.6,7.90945229]
[1736989874590,1.89885637,711.59,710.6,7.90945229]
[1736989874787,1.89885637,711.58,710.6,7.90945229]
[1736989874990,1.13960038,711.57,710.6,7.90945229]
[1736989875191,1.04975023,711.97,710.6,7.90945229]
[1736989875393,3.11358647,711.96,710.6,7.90945229]
[1736989875590,3.11358647,711.95,710.6,7.90945229]
[1736989875788,3.11358647,711.94,710.6,7.90945229]
[1736989875987,1.04975023,711.89,710.6,7.90945229]
[1736989876192,3.11360862,711.88,710.6,7.90945229]
[1736989876389,3.11360862,711.87,710.6,7.90945229]
[1736989876591,3.11372702,711.86,710.6,7.90945229]
[1736989876794,3.11372702,711.85,710.6,7.90945229]
[1736989876994,3.11372702,711.84,710.6,7.90945229]
[1736989877194,3.11394631,711.83,710.6,7.90945229]
[1736989877498,3.11394631,711.82,710.6,7.90945229]
[1736989877696,3.11394631,711.81,710.6,7.90945229]
[1736989877892,3.11394631,711.8,710.6,7.90945229]
[1736989878099,3.11394631,711.79,710.61,1.05385224]
[1736989878295,3.11394631,711.78,710.61,1.05385224]
[1736989878599,3.11394631,711.77,710.62,0.28144437]
[1736989878800,1.89901469,711.76,710.62,0.28144437]
[1736989879092,3.11372054,711.75,710.62,0.28144437]
[1736989879297,3.11372054,711.74,710.62,0.28144437]
[1736989879494,3.11372054,711.73,710.62,5.66144437]
[1736989879697,3.11372054,711.72,710.62,5.66144437]
[1736989879892,1.8988193,711.71,710.62,5.66144437]
[1736989880198,1.8988193,711.7,710.62,5.66144437]
[1736989880399,1.8988193,711.69,710.62,5.66144437]
[1736989880702,1.8988193,711.68,710.62,5.66144437]
[1736989880997,1.8988193,711.67,710.62,5.66144437]
[1736989881198,1.8988193,711.66,710.62,5.66144437]
[1736989881398,1.8988193,711.65,710.62,5.66144437]
[1736989881597,1.8988193,711.64,710.62,5.66144437]
[1736989881799,1.13968243,711.63,710.62,5.66144437]
[1736989881997,1.04975023,712.02,710.62,5.66144437]
[1736989882194,3.11306901,712.01,710.62,5.66144437]
[1736989882395,3.11306901,712.0,710.62,5.66144437]
[1736989882595,3.11306901,711.99,710.62,5.66144437]
[1736989882902,3.11306901,711.98,710.62,5.66144437]
[1736989883099,3.11306901,711.97,710.62,5.66144437]
[1736989883296,3.11306901,711.96,710.62,5.66144437]
[1736989883498,3.11306901,711.95,710.62,5.66144437]
[1736989883694,3.11306901,711.94,710.62,5.66144437]
[1736989883894,3.11306901,711.93,710.62,5.66144437]
[1736989884201,3.11306901,711.92,710.62,5.66144437]
[1736989884401,3.11306901,711.91,710.62,5.66144437]
[1736989884603,3.11306901,711.9,710.62,5.66144437]
[1736989884904,3.11306901,711.89,710.62,5.66144437]
[1736989885104,3.11306901,711.88,710.62,5.66144437]
[1736989885404,3.11306901,711.87,710.62,5.66144437]
[1736989885605,3.11221756,711.86,710.62,5.66144437]
[1736989885801,3.11221756,711.85,710.62,5.66144437]
[1736989886000,3.11221756,711.84,710.62,5.66144437]
[1736989886201,3.11221756,711.83,710.62,5.66144437]
[1736989886399,3.11221756,711.82,710.62,5.66144437]
[1736989886603,0.28086731,712.08,710.62,5.66144437]
[1736989886604,3.11221756,711.81,710.62,5.66144437]
[1736989886804,3.11221756,711.8,710.62,5.66144437]
[1736989887003,3.11221756,711.79,710.62,5.66144437]
[1736989887304,3.11221756,711.78,710.62,5.66144437]
[1736989887496,3.11221756,711.77,710.62,5.66144437]
[1736989887804,3.11221756,711.76,710.62,5.66144437]
[1736989888006,3.11221756,711.75,710.62,5.66144437]
[1736989888205,3.11221756,711.74,710.62,5.66144437]
[1736989888506,3.11221756,711.73,710.62,5.66144437]
[1736989888703,3.11221756,711.72,710.62,5.66144437]
[1736989888901,1.89797087,711.71,710.62,5.66144437]
[1736989889109,1.89797087,711.7,710.62,5.66144437]
[1736989889303,1.89797087,711.69,710.62,5.66144437]
[1736989889504,1.89833533,711.68,710.62,5.66144437]
[1736989889704,1.89833533,711.67,710.62,5.66144437]
[1736989889900,1.89833533,711.66,710.62,5.66144437]
[1736989890105,1.89833533,711.65,710.62,5.66144437]
[1736989890307,1.89833533,711.64,710.62,5.66144437]
[1736989890602,1.04975023,711.93,710.62,5.66144437]
[1736989890805,3.11375753,711.92,710.62,5.66144437]
[1736989891003,3.11375753,711.91,710.62,5.66144437]
[1736989891207,3.11375753,711.9,710.62,5.66144437]
[1736989891403,3.11377239,711.89,710.62,5.66144437]
[1736989891607,3.11377239,711.88,710.62,5.66144437]
[1736989891810,3.11377239,711.87,710.62,5.66144437]
[1736989892008,1.04975023,711.94,710.62,5.66144437]
[1736989892205,3.11376861,711.93,710.62,5.66144437]
[1736989892410,3.11376861,711.92,710.62,5.66144437]
[1736989892712,3.11387849,711.91,710.62,5.66144437]
[1736989892911,3.11387849,711.9,710.62,5.66144437]
[1736989893109,3.11387849,711.89,710.62,5.66144437]
[1736989893310,3.11387849,711.88,710.62,5.66144437]
[1736989893510,3.11411705,711.87,710.62,5.66144437]
[1736989893710,3.11411705,711.86,710.62,5.66144437]
[1736989893910,3.11411705,711.85,710.62,5.66144437]
[1736989894107,3.11411705,711.84,710.62,5.66144437]
[1736989894309,3.11411705,711.83,710.62,5.66144437]
[1736989894506,3.11411705,711.82,710.62,5.66144437]
[1736989894707,3.11411705,711.81,710.62,5.66144437]
[1736989894907,3.11411705,711.8,710.62,5.66144437]
[1736989895214,3.11411705,711.79,710.62,5.66144437]
[1736989895410,3.11411705,711.78,710.62,5.66144437]
[1736989895613,3.11411705,711.77,710.62,5.66144437]
[1736989895809,3.11411705,711.76,710.62,5.66144437]
[1736989896009,3.11411705,711.75,710.62,5.66144437]
[1736989896209,3.11411705,711.74,710.62,5.66144437]
[1736989896515,3.11411705,711.73,710.62,5.66144437]
[1736989896713,3.11411705,711.72,710.62,5.66144437]
[1736989896913,3.11411705,711.71,710.62,5.66144437]
[1736989897115,3.11411705,711.7,710.62,5.66144437]
[1736989897317,3.11411705,711.69,710.62,5.66144437]
[1736989897514,1.89919801,711.68,710.62,5.66144437]
[1736989897711,1.89919801,711.67,710.62,5.66144437]
[1736989897916,1.89919801,711.66,710.62,5.66144437]
[1736989898219,1.89919801,711.65,710.62,5.66144437]
[1736989898414,1.89919801,711.64,710.62,5.66144437]
[1736989898612,1.89919801,711.63,710.62,5.66144437]
[1736989898813,1.89919801,711.62,710.62,5.66144437]
[1736989899011,1.89919801,711.61,710.62,5.66144437]
[1736989899217,1.89919801,711.6,710.62,5.66144437]
[1736989899413,1.89919801,711.59,710.62,5.66144437]
[1736989899613,1.89919801,711.58,710.62,5.66144437]
[1736989899914,1.14016471,711.57,710.62,5.66144437]
[1736989900114,1.04975023,711.93,710.62,5.66144437]
[1736989900314,3.11500144,711.92,710.62,5.66144437]
[1736989900516,3.11500144,711.91,710.62,5.66144437]
[1736989900721,3.11500144,711.9,710.62,5.66144437]
[1736989901019,3.11500144,711.89,710.62,5.66144437]
[1736989901221,3.11500144,711.88,710.62,5.66144437]
[1736989901417,3.11500144,711.87,710.62,5.66144437]
[1736989901616,3.11500144,711.86,710.62,5.66144437]
[1736989901922,1.04975023,711.94,710.62,5.66144437]
[1736989901923,3.11500144,711.85,710.62,5.66144437]
[1736989902117,3.11500144,711.84,710.62,5.66144437]
[1736989902324,3.11500144,711.83,710.62,5.66144437]
[1736989902522,3.11500144,711.82,710.62,5.66144437]
[1736989902722,3.11500144,711.81,710.62,5.66144437]
[1736989902916,3.11500144,711.8,710.62,5.66144437]
[1736989903120,3.1148728,711.79,710.62,5.66144437]
[1736989903422,3.1148728,711.78,710.62,5.66144437]
[1736989903617,3.1148728,711.77,710.62,5.66144437]
[1736989903822,3.1148728,711.76,710.62,5.66144437]
[1736989904021,3.1148728,711.75,710.62,5.66144437]
[1736989904224,3.1148728,711.74,710.62,5.66144437]
[1736989904424,3.1148728,711.73,710.62,5.66144437]
[1736989904621,3.1148728,711.72,710.62,5.66144437]
[1736989904922,3.1148728,711.71,710.62,5.66144437]
[1736989905116,3.1148728,711.7,710.62,5.66144437]
[1736989905320,3.1148728,711.69,710.62,5.66144437]
[1736989905622,3.11440004,711.68,710.62,5.66144437]
[1736989905922,3.11440004,711.67,710.62,5.66144437]
[1736989906217,1.89935577,711.66,710.62,5.66144437]
[1736989906422,1.89935577,711.65,710.62,5.66144437]
[1736989906623,1.89935577,711.64,710.62,5.66144437]
[1736989906917,1.89935577,711.63,710.62,5.66144437]
[1736989907123,1.89935577,711.62,710.62,5.66144437]
[1736989907423,1.89935577,711.61,710.62,5.66144437]
[1736989907624,1.1399531,711.6,710.62,5.66144437]
[1736989907814,1.1399531,711.59,710.62,5.66144437]
[1736989908020,1.04975023,711.92,710.62,5.66144437]
[1736989908222,3.11456654,711.91,710.62,5.66144437]
[1736989908424,3.11456654,711.9,710.62,5.66144437]
[1736989908623,3.11456654,711.89,710.62,5.66144437]
[1736989908822,3.11456654,711.88,710.62,5.66144437]
[1736989909022,3.11456654,711.87,710.62,5.66144437]
[1736989909226,3.11456654,711.86,710.62,5.66144437]
[1736989909426,3.11456654,711.85,710.62,5.66144437]
[1736989909627,3.11456654,711.84,710.62,5.66144437]
[1736989909925,3.11456654,711.83,710.62,5.66144437]
[1736989910126,3.11456654,711.82,710.62,5.66144437]
[1736989910325,3.11456654,711.81,710.62,5.66144437]
[1736989910521,3.11456654,711.8,710.62,5.66144437]
[1736989910723,3.11456654,711.79,710.62,5.66144437]
[1736989910927,3.11456654,711.78,710.62,5.66144437]
[1736989911127,3.11456654,711.77,710.62,5.66144437]
[1736989911328,3.11456654,711.76,710.62,5.66144437]
[1736989911527,3.11456654,711.75,710.66,1.05385224]
[1736989911727,3.11456654,711.74,710.66,1.05385224]
[1736989911922,3.11456654,711.73,710.66,1.05385224]
[1736989912127,3.11456654,711.72,710.66,1.05385224]
[1736989912430,3.11456654,711.71,710.66,1.05385224]
[1736989912631,3.11456654,711.7,710.68,1.05385224]
[1736989912827,3.11456654,711.69,710.68,2.17885224]
[1736989913123,3.11456654,711.68,710.68,6.06185224]
[1736989913329,3.11456654,711.67,710.68,6.06185224]
[1736989913629,3.11456654,711.66,710.69,1.05385224]
[1736989913822,1.89940352,711.65,710.69,1.05385224]
[1736989914027,1.89940352,711.64,710.69,1.05385224]
[1736989914230,1.89940352,711.63,710.69,1.05385224]
[1736989914430,1.89940352,711.62,710.69,1.05385224]
[1736989914729,1.89940352,711.61,710.71,1.05385224]
[1736989915029,1.89940352,711.6,710.71,1.05385224]
[1736989915329,1.89940352,711.59,710.71,1.05385224]
[1736989915527,1.13992663,711.58,710.71,1.05385224]
[1736989915723,1.13992663,711.57,710.71,1.05385224]
[1736989915929,1.04975023,711.79,710.71,1.05385224]
[1736989916229,3.11415482,711.78,710.68,6.805]
[1736989916429,3.11415482,711.77,710.68,6.805]
[1736989916624,1.97438093,711.76,710.68,6.805]
[1736989916829,3.11416278,711.75,710.68,6.805]
[1736989917030,3.11416278,711.74,710.68,6.805]
[1736989917229,3.11416278,711.73,710.68,6.805]
[1736989917426,3.11416278,711.72,710.68,6.805]
[1736989917631,3.11416278,711.71,710.68,6.805]